fUSD/lending_fUSD_20251217
["ID","MTS","AMOUNT","RATE_DAILY","PERIOD"]
[398949472,1766014238949,-500.0,0.00013698,2]
[398949474,1766014238959,-500.0,0.00013698,2]
[398949476,1766014238968,-500.0,0.00013698,2]
[398949478,1766014238977,-500.0,0.00013698,2]
[398949480,1766014238986,-500.0,0.00013698,2]
[398949482,1766014238996,-502.07958836,0.00013698,2]
[398949483,1766014239005,-500.0,0.00013698,2]
[398949484,1766014239015,-166.66,0.00013699,2]
[398949485,1766014239024,-500.0,0.00013699,2]
[398949486,1766014239033,-500.0,0.00013699,2]
[398949487,1766014239042,-500.0,0.00013699,2]
[398949488,1766014239052,-500.0,0.00013699,2]
[398949489,1766014239061,-500.0,0.00013699,2]
[398949490,1766014239071,-500.0,0.00013699,2]
[398949491,1766014239080,-500.0,0.00013699,2]
[398949492,1766014239089,-223.80538828,0.00013699,2]
[398949494,1766014239098,-500.0,0.00013699,2]
[398949496,1766014239107,-500.0,0.00013699,2]
[398949498,1766014239116,-420.0,0.00013711,2]
[398949500,1766014239125,-1680.0,0.00013746,2]
[398949502,1766014239134,-500.0,0.00013786,2]
[398949504,1766014239143,-736.21,0.00013793,2]
[398949506,1766014239152,-166.66,0.00013836,2]
[398949508,1766014239161,-500.0,0.00013921,2]
[398949510,1766014239170,-500.0,0.00013921,2]
[398949512,1766014239179,-19349.50246835,0.00013965,2]
[398949514,1766014239188,-10182.60039574,0.00013965,2]
[398949516,1766014239198,-166.66,0.00013973,2]
[398949518,1766014239208,-5536.39004615,0.0001399,2]
[398949520,1766014239217,-736.25,0.00014067,2]
[398949522,1766014239227,-166.66,0.0001411,2]
[398949525,1766014239236,-166.66,0.00014247,2]
[398949526,1766014239246,-1000.0,0.00014294,2]
[398949528,1766014239256,-500.0,0.00014334,2]
[398949530,1766014239265,-166.66,0.00014384,2]
[398949533,1766014239275,-19349.50246835,0.00014454,2]
[398949535,1766014239284,-10182.60039574,0.00014454,2]
[398949537,1766014239293,-284.67466515,0.0001447,2]
[398949539,1766014239303,-500.0,0.0001454,2]
[398949541,1766014239312,-433.0,0.00014795,2]
[398949543,1766014239321,-19349.50246835,0.00014943,2]
[398949545,1766014239330,-10182.60039574,0.00014943,2]
[398949547,1766014239340,-503.73,0.0001495,2]
[398949549,1766014239349,-587.0,0.00015044,2]
[398949551,1766014239359,-1318.0,0.0001512,2]
[398949553,1766014239368,-19349.50246835,0.00015432,2]
[398949555,1766014239377,-10182.60039574,0.00015432,2]
[398949557,1766014239386,-500.0,0.00015473,2]
[398949559,1766014239395,-500.0,0.00015473,2]
[398949561,1766014239404,-500.0,0.00015473,2]
[398949563,1766014239414,-500.0,0.00015473,2]
[398949565,1766014239423,-500.0,0.00015473,2]
[398949567,1766014239432,-500.2027477,0.00015473,2]
[398949569,1766014239441,-500.0,0.00015473,2]
[398949571,1766014239451,-500.0,0.00015473,2]
[398949573,1766014239460,-500.0,0.00015473,2]
[398949575,1766014239469,-500.0,0.00015473,2]
[398949577,1766014239478,-176.75702751,0.00015473,2]
[398949579,1766014239487,-500.0,0.00015473,2]
[398949581,1766014239496,-500.0,0.00015473,2]
[398949583,1766014239506,-500.0,0.00015473,2]
[398949584,1766014239515,-500.0,0.00015473,2]
[398949585,1766014239524,-500.0,0.00015473,2]
[398949586,1766014239533,-500.0,0.00015473,2]
[398949587,1766014239542,-500.0,0.00015473,2]
[398949588,1766014239551,-500.0,0.00015473,2]
[398949589,1766014239560,-500.0,0.00015473,2]
[398949590,1766014239569,-312.89624683,0.00015473,2]
[398949591,1766014239579,-500.0,0.00015473,2]
[398949592,1766014239588,-500.0,0.00015473,2]
[398949593,1766014239597,-500.0,0.00015473,2]
[398949594,1766014239607,-500.0,0.00015473,2]
[398949595,1766014239616,-500.0,0.00015473,2]
[398949596,1766014239625,-500.0,0.00015473,2]
[398949597,1766014239635,-500.0,0.00015473,2]
[398949598,1766014239644,-500.0,0.00015473,2]
[398949599,1766014239653,-199.14559614,0.00015473,2]
[398949600,1766014239662,-500.0,0.00015473,2]
[398949601,1766014239672,-500.0,0.00015473,2]
[398949602,1766014239681,-500.0,0.00015473,2]
[398949603,1766014239690,-500.0,0.00015473,2]
[398949604,1766014239699,-500.0,0.00015473,2]
[398949605,1766014239708,-500.0,0.00015473,2]
[398949606,1766014239718,-500.0,0.00015473,2]
[398949608,1766014239730,-16692.55762232,0.00015556,2]
[398949610,1766014239739,-1000.0,0.00015882,2]
[398949612,1766014239750,-150.98,0.000159,2]
[398949614,1766014239759,-150.0,0.000159,2]
[398949616,1766014239771,-19349.50246835,0.00015922,2]
[398949618,1766014239780,-10182.60039574,0.00015922,2]
[398949620,1766014239789,-219.45685006,0.0001599,2]
[398949622,1766014239799,-409830.99181449,0.00016,4]
[398949624,1766014239808,-415.16425882,0.00016,2]
[398949626,1766014239818,-300.84,0.00016068,2]
[398949628,1766014239827,-160.29,0.00016169,2]
[398949630,1766014239836,-15990.03284066,0.000162,5]
[398949632,1766014239846,-250.0,0.00016327,2]
[398949634,1766014239856,-284.67466515,0.00016343,2]
[398949636,1766014239865,-321.0,0.0001637,2]
[398949638,1766014239874,-19349.50246835,0.00016411,2]
[398949640,1766014239883,-10182.60039574,0.00016411,2]
[398949642,1766014239892,-321.0,0.00016436,2]
[398949643,1766014239902,-500.0,0.00016438,2]
[398949644,1766014239911,-500.0,0.00016438,2]
[398949645,1766014239920,-500.0,0.00016438,2]
[398949646,1766014239930,-500.0,0.00016438,2]
[398949647,1766014239939,-500.0,0.00016438,2]
[398949648,1766014239948,-500.0,0.00016438,2]
[398949649,1766014239957,-500.0,0.00016438,2]
[398949650,1766014239966,-500.0,0.00016438,2]
[398949651,1766014239975,-500.0,0.00016438,2]
[398949652,1766014239984,-500.0,0.00016438,2]
[398949653,1766014239993,-500.0,0.00016438,2]
[398949654,1766014240003,-500.0,0.00016438,2]
[398949655,1766014240012,-500.0,0.00016438,2]
[398949656,1766014240021,-500.0,0.00016438,2]
[398949657,1766014240030,-500.0,0.00016438,2]
[398949658,1766014240040,-500.0,0.00016438,2]
[398949659,1766014240049,-624.14714654,0.00016438,2]
[398949660,1766014240057,-500.0,0.00016438,2]
[398949661,1766014240066,-500.0,0.00016438,2]
[398949662,1766014240075,-500.0,0.00016438,2]
[398949663,1766014240085,-542.85464324,0.00016438,2]
[398949664,1766014240095,-542.85464324,0.00016438,2]
[398949666,1766014240104,-542.85464324,0.00016438,2]
[398949667,1766014240114,-542.85464324,0.00016438,2]
[398949668,1766014240123,-542.85464324,0.00016438,2]
[398949669,1766014240132,-542.85464324,0.00016438,2]
[398949670,1766014240142,-542.85464324,0.00016438,2]
[398949671,1766014240154,-542.85464324,0.00016438,2]
[398949673,1766014240164,-542.85464324,0.00016438,2]
[398949675,1766014240173,-542.85464324,0.00016438,2]
[398949677,1766014240182,-542.85464324,0.00016438,2]
[398949679,1766014240191,-542.85464324,0.00016438,2]
[398949681,1766014240200,-542.85464324,0.00016438,2]
[398949683,1766014240209,-542.85464324,0.00016438,2]
[398949685,1766014240219,-542.85464324,0.00016438,2]
[398949687,1766014240228,-542.85464324,0.00016438,2]
[398949689,1766014240237,-542.85464324,0.00016438,2]
[398949691,1766014240246,-542.85464324,0.00016438,2]
[398949693,1766014240255,-542.85464324,0.00016438,2]
[398949695,1766014240264,-542.85464324,0.00016438,2]
[398949697,1766014240274,-542.85464324,0.00016438,2]
[398949699,1766014240283,-542.85464324,0.00016438,2]
[398949701,1766014240292,-542.85464324,0.00016438,2]
[398949703,1766014240301,-542.85464324,0.00016438,2]
[398949704,1766014240310,-542.85464324,0.00016438,2]
[398949706,1766014240319,-542.85464324,0.00016438,2]
[398949707,1766014240328,-542.85464324,0.00016438,2]
[398949708,1766014240338,-542.85464324,0.00016438,2]
[398949709,1766014240347,-542.85464324,0.00016438,2]
[398949710,1766014240356,-542.85464324,0.00016438,2]
[398949711,1766014240365,-542.85464324,0.00016438,2]
[398949712,1766014240374,-542.85464324,0.00016438,2]
[398949713,1766014240383,-1041.69404513,0.00016438,2]
[398949714,1766014240393,-1041.69404513,0.00016438,2]
[398949715,1766014240402,-1041.69404513,0.00016438,2]
[398949716,1766014240411,-1041.69404513,0.00016438,2]
[398949717,1766014240420,-1041.69404513,0.00016438,2]
[398949718,1766014240429,-1041.69404513,0.00016438,2]
[398949719,1766014240438,-1041.69404513,0.00016438,2]
[398949720,1766014240447,-1041.69404513,0.00016438,2]
[398949721,1766014240457,-1041.69404513,0.00016438,2]
[398949722,1766014240466,-1041.69404513,0.00016438,2]
[398949723,1766014240475,-1041.69404513,0.00016438,2]
[398949724,1766014240484,-1041.69404513,0.00016438,2]
[398949725,1766014240493,-1041.69404513,0.00016438,2]
[398949726,1766014240503,-1041.69404513,0.00016438,2]
[398949727,1766014240512,-1041.69404513,0.00016438,2]
[398949728,1766014240522,-1041.69404513,0.00016438,2]
[398949729,1766014240531,-1041.69404513,0.00016438,2]
[398949730,1766014240540,-1041.69404513,0.00016438,2]
[398949731,1766014240549,-432.52543366,0.00016438,2]
[398949732,1766014240558,-225.73,0.00016438,2]
[398949733,1766014240567,-7266.11,0.00016438,2]
[398949734,1766014240576,-802.40723931,0.00016438,2]
[398949735,1766014240586,-321.0,0.00016443,2]
[398949736,1766014240595,-321.0,0.00016481,2]
[398949737,1766014240604,-321.0,0.00016533,2]
[398949738,1766014240613,-358.48883582,0.000166,2]
[398949739,1766014240622,-321.0,0.00016614,2]
[398949740,1766014240631,-321.0,0.00016644,2]
[398949741,1766014240640,-167.28,0.00016712,2]
[398949742,1766014240649,-174.67004748,0.00016744,2]
[398949743,1766014240658,-321.0,0.00016754,2]
[398949744,1766014240667,-2116.5466935,0.00016778,2]
[398949745,1766014240676,-321.0,0.00016843,2]
[398949746,1766014240685,-3117.547888,0.00016844,2]
[398949747,1766014240694,-400.2007067,0.00016844,2]
[398949748,1766014240703,-186347.4927574,0.00016844,2]
[398949749,1766014240712,-13473.3396304,0.00016844,2]
[398949750,1766014240722,-203.05469177,0.00016887,2]
[398949751,1766014240734,-572.32763985,0.000169,2]
[398949752,1766014240744,-465.52748528,0.000169,2]
[398949753,1766014240753,-19349.50246835,0.000169,2]
[398949754,1766014240763,-10182.60039574,0.000169,2]
[398949755,1766014240774,-3628.06136484,0.00016938,2]
[398949756,1766014240783,-2878.92230328,0.0001694,2]
[398949757,1766014240792,-321.0,0.00016946,2]
[398949758,1766014240803,-300.84,0.00016961,2]
[398949759,1766014240813,-200.0,0.00016986,2]
[398949760,1766014240823,-200.0,0.00016986,2]
[398949761,1766014240833,-600.64,0.00016986,2]
[398949762,1766014240843,-200.0,0.00016986,2]
[398949763,1766014240852,-200.0,0.00016986,2]
[398949764,1766014240861,-172261.9663493,0.00016986,2]
[398949765,1766014240871,-219.45685006,0.0001699,2]
[398949766,1766014240880,-219.45685006,0.0001699,2]
[398949767,1766014240889,-321.0,0.00016993,2]
[398949768,1766014240899,-2000.0,0.00016999,2]
[398949769,1766014240908,-2000.0,0.00016999,2]
[398949770,1766014240918,-1685.438,0.00016999,2]
[398949771,1766014240927,-1000.0,0.00016999,2]
[398949772,1766014240936,-1000.0,0.00016999,2]
[398949773,1766014240945,-843.611,0.00016999,2]
[398949774,1766014240954,-250.0,0.00017,2]
[398949775,1766014240963,-1404420.59499275,0.00017,2]
[398949778,1766014242556,-1000.0,0.00012598,2]
[398949780,1766014242566,-1064.347687,0.00017,2]
[398949783,1766014242576,-9636.31,0.00017,2]
[398949785,1766014242588,-334.96069996,0.00017,2]
[398949788,1766014242602,-2921759.1454549,0.00017,2]
[398949789,1766014242611,-298636.53216609,0.00017,2]
[398949792,1766014242621,-1000.0,0.00017,2]
[398949793,1766014242631,-1000.0,0.00017,2]
[398949794,1766014242640,-1000.0,0.00017,2]
[398949795,1766014242648,-1000.0,0.00017,2]
[398949798,1766014242658,-1000.0,0.00017,2]
[398949801,1766014242666,-1000.0,0.00017,2]
[398949803,1766014242675,-1000.0,0.00017,2]
[398949805,1766014242684,-1000.0,0.00017,2]
[398949807,1766014242693,-689.193,0.00017,2]
[398949809,1766014242701,-1000.0,0.00017,2]
[398949811,1766014242710,-1000.0,0.00017,2]
[398949813,1766014242720,-1000.0,0.00017,2]
[398949815,1766014242732,-1000.0,0.00017,2]
[398949817,1766014242741,-1000.0,0.00017,2]
[398949819,1766014242751,-717.946,0.00017,2]
[398949821,1766014242759,-321.0,0.00017024,2]
[398949823,1766014242770,-200.0,0.00017156,2]
[398949824,1766014242779,-200.0,0.00017156,2]
[398949825,1766014242788,-200.0,0.00017156,2]
[398949827,1766014242799,-200.0,0.00017156,2]
[398949828,1766014242808,-200.0,0.00017174,2]
[398949829,1766014242817,-321.0,0.00017198,2]
[398949830,1766014242826,-321.0,0.00017209,2]
[398949831,1766014242835,-321.0,0.00017214,2]
[398949832,1766014242844,-47710.76253303,0.00017282,2]
[398949833,1766014242853,-321.0,0.00017296,2]
[398949834,1766014242862,-500.0,0.00017318,2]
[398949835,1766014242871,-200.0,0.00017327,2]
[398949836,1766014242880,-200.0,0.00017327,2]
[398949837,1766014242889,-200.0,0.00017327,2]
[398949838,1766014242898,-200.0,0.00017327,2]
[398949839,1766014242907,-321.0,0.0001744,2]
[398949840,1766014242916,-1000.0,0.0001747,2]
[398949841,1766014242926,-500.0,0.00017496,6]
[398949842,1766014242935,-500.0,0.00017496,2]
[398949843,1766014242944,-200.0,0.00017501,2]
[398949844,1766014242953,-200.0,0.00017501,2]
[398949845,1766014242962,-200.0,0.00017501,2]
[398949846,1766014242971,-200.0,0.00017501,2]
[398949847,1766014242980,-321.0,0.00017596,2]
[398949848,1766014242989,-168.0,0.00017601,2]
[398949849,1766014242998,-321.0,0.00017626,2]
[398949850,1766014243007,-321.0,0.00017634,2]
[398949851,1766014243016,-200.0,0.00017676,2]
[398949852,1766014243025,-200.0,0.00017676,2]
[398949853,1766014243034,-200.0,0.00017676,2]
[398949854,1766014243043,-670.7584049,0.00017678,2]
[398949856,1766014243052,-321.0,0.00017687,2]
[398949858,1766014243061,-659.73,0.0001769,2]
[398949860,1766014243070,-321.0,0.00017704,2]
[398949861,1766014243082,-166.66,0.00017785,2]
[398949862,1766014243092,-300.84,0.00017854,2]
[398949863,1766014243102,-321.0,0.0001792,2]
[398949864,1766014243111,-321.0,0.0001797,2]
[398949865,1766014243120,-376.44629184,0.00017972,2]
[398949866,1766014243131,-1000.0,0.00018082,2]
[398949867,1766014243141,-166.66,0.00018372,2]
[398949868,1766014243151,-465.52748528,0.00018474,2]
[398949869,1766014243162,-500.0,0.00018563,2]
[398949870,1766014243173,-500.063452,0.00018564,2]
[398949871,1766014243183,-500.0,0.00018733,2]
[398949873,1766014243194,-300.84,0.00018746,2]
[398949874,1766014243203,-1000.0,0.0001876,2]
[398949875,1766014243213,-150.91,0.000188,2]
[398949876,1766014243223,-150.91,0.000188,2]
[398949877,1766014243233,-150.91,0.000188,2]
[398949878,1766014243243,-150.91,0.000188,2]
[398949879,1766014243254,-150.91,0.000188,2]
[398949880,1766014243263,-150.91,0.000188,2]
[398949881,1766014243273,-150.91,0.000188,2]
[398949882,1766014243283,-150.91,0.000188,2]
[398949883,1766014243293,-150.91,0.000188,2]
[398949884,1766014243303,-150.91,0.000188,2]
[398949885,1766014243312,-150.91,0.000188,2]
[398949886,1766014243322,-150.91,0.000188,2]
[398949887,1766014243331,-150.91,0.000188,2]
[398949888,1766014243343,-150.91,0.000188,2]
[398949889,1766014243353,-150.91,0.000188,2]
[398949890,1766014243363,-150.91,0.000188,2]
[398949891,1766014243372,-150.91,0.000188,2]
[398949892,1766014243381,-150.91,0.000188,2]
[398949893,1766014243391,-150.91,0.000188,2]
[398949894,1766014243400,-150.91,0.000188,2]
[398949895,1766014243410,-150.91,0.000188,2]
[398949896,1766014243419,-150.91,0.000188,2]
[398949897,1766014243428,-150.91,0.000188,2]
[398949898,1766014243438,-150.91,0.000188,2]
[398949899,1766014243447,-150.91,0.000188,2]
[398949900,1766014243457,-150.91,0.000188,2]
[398949901,1766014243466,-150.91,0.000188,2]
[398949902,1766014243475,-150.91,0.000188,2]
[398949903,1766014243484,-150.91,0.000188,2]
[398949904,1766014243493,-150.91,0.000188,2]
[398949905,1766014243503,-150.91,0.000188,2]
[398949906,1766014243512,-150.91,0.000188,2]
[398949907,1766014243521,-150.91,0.000188,2]
[398949908,1766014243531,-150.91,0.000188,2]
[398949909,1766014243540,-150.91,0.000188,2]
[398949910,1766014243550,-150.91,0.000188,2]
[398949911,1766014243560,-150.91,0.000188,2]
[398949912,1766014243569,-150.91,0.000188,2]
[398949913,1766014243578,-150.91,0.000188,2]
[398949914,1766014243588,-150.91,0.000188,2]
[398949915,1766014243597,-150.91,0.000188,2]
[398949916,1766014243606,-166.66,0.00018959,2]
[398949917,1766014243616,-300.0,0.00019,2]
[398949918,1766014243626,-74778.36755618,0.00019,2]
[398949919,1766014243635,-1000.0,0.00019059,2]
[398949920,1766014243644,-3117.547888,0.00019136,2]
[398949921,1766014243653,-13473.3396304,0.000192,2]
[398949922,1766014243662,-400.2007067,0.00019206,2]
[398949923,1766014243671,-186347.4927574,0.00019284,2]
[398949924,1766014243680,-624.50161709,0.0001931,7]
[398949925,1766014243689,-500.0,0.0001931,2]
[398949926,1766014243698,-500.0,0.0001931,2]
[398949927,1766014243707,-1000.0,0.00019438,2]
[398949928,1766014243716,-500.0,0.00019518,2]
[398949929,1766014243728,-150.74499895,0.00019518,2]
[398949930,1766014243737,-150.0,0.00019518,2]
[398949931,1766014243746,-150.0,0.00019518,2]
[398949932,1766014243755,-250.29726926,0.00019518,2]
[398949933,1766014243764,-150.0,0.00019518,2]
[398949934,1766014243774,-500.0,0.00019518,2]
[398949935,1766014243782,-500.0,0.00019518,2]
[398949936,1766014243791,-500.0,0.00019518,2]
[398949937,1766014243802,-660.0,0.00019518,2]
[398949938,1766014243810,-500.0,0.00019518,2]
[398949939,1766014243819,-150.0,0.00019518,2]
[398949940,1766014243828,-150.0,0.00019518,2]
[398949941,1766014243838,-500.0,0.00019518,2]
[398949942,1766014243846,-150.0,0.00019518,2]
[398949943,1766014243855,-150.0,0.00019518,2]
[398949944,1766014243864,-500.0,0.00019518,2]
[398949945,1766014243873,-150.0,0.00019518,2]
[398949946,1766014243882,-150.0,0.00019518,2]
[398949947,1766014243891,-207.32829514,0.00019518,2]
[398949948,1766014243901,-150.0,0.00019518,2]
[398949949,1766014243910,-150.0,0.00019518,2]
[398949950,1766014243919,-500.0,0.00019518,2]
[398949951,1766014243928,-500.0,0.00019518,2]
[398949952,1766014243937,-166.66,0.00019546,2]
[398949953,1766014243947,-300.84,0.00019639,2]
[398949954,1766014243956,-500.0,0.00019655,2]
[398949955,1766014243965,-200.0,0.00019655,2]
[398949956,1766014243974,-200.0,0.00019655,2]
[398949957,1766014243983,-150.0,0.00019655,2]
[398949958,1766014243992,-500.0,0.00019655,2]
[398949959,1766014244001,-500.0,0.00019655,2]
[398949960,1766014244010,-500.0,0.00019655,2]
[398949961,1766014244018,-660.0,0.00019655,2]
[398949962,1766014244027,-500.0,0.00019655,2]
[398949963,1766014244036,-500.0,0.00019655,2]
[398949964,1766014244045,-150.0,0.00019655,2]
[398949965,1766014244054,-500.0,0.00019655,2]
[398949966,1766014244063,-150.08427247,0.00019655,2]
[398949967,1766014244072,-500.0,0.00019655,2]
[398949968,1766014244082,-500.0,0.00019655,2]
[398949969,1766014244092,-500.0,0.00019792,2]
[398949970,1766014244101,-200.0,0.00019792,2]
[398949971,1766014244110,-500.0,0.00019792,2]
[398949972,1766014244118,-500.0,0.00019792,2]
[398949973,1766014244128,-295.39785189,0.00019792,2]
[398949974,1766014244139,-660.0,0.00019792,2]
[398949975,1766014244148,-500.0,0.00019792,2]
[398949976,1766014244157,-564.94136988,0.00019792,2]
[398949977,1766014244166,-150.0,0.00019792,2]
[398949978,1766014244175,-500.0,0.00019792,2]
[398949979,1766014244184,-500.0,0.00019792,2]
[398949980,1766014244193,-500.0,0.00019792,2]
[398949981,1766014244203,-150.0944396,0.00019803,2]
[398949982,1766014244212,-500.0,0.00019929,2]
[398949983,1766014244222,-500.0,0.00019929,2]
[398949984,1766014244231,-500.0,0.00019929,2]
[398949985,1766014244240,-660.0,0.00019929,2]
[398949986,1766014244250,-500.0,0.00019929,2]
[398949987,1766014244260,-150.0,0.00019929,2]
[398949988,1766014244269,-500.0,0.00019929,2]
[398949989,1766014244279,-500.0,0.00019929,2]
[398949990,1766014244288,-500.0,0.00019929,2]
[398949991,1766014244297,-150.0,0.0002,7]
[398949992,1766014244307,-173.4,0.0002,2]
[398949993,1766014244316,-465.52748528,0.00020048,2]
[398949994,1766014244325,-500.0,0.00020066,2]
[398949995,1766014244335,-276.53505463,0.00020066,2]
[398949996,1766014244345,-500.0,0.00020066,2]
[398949997,1766014244354,-660.0,0.00020066,2]
[398949998,1766014244363,-500.0,0.00020066,2]
[398949999,1766014244372,-500.0,0.00020066,2]
[398950000,1766014244381,-150.0,0.00020066,2]
[398950001,1766014244391,-500.0,0.00020066,2]
[398950002,1766014244400,-500.0,0.00020066,2]
[398950003,1766014244409,-1002.41049015,0.000201,2]
[398950004,1766014244419,-1000.0,0.00020116,2]
[398950005,1766014244434,-166.66,0.00020133,2]
[398950006,1766014244452,-880.69,0.00020187,2]
[398950007,1766014244470,-500.0,0.00020203,2]
[398950008,1766014244480,-660.0,0.00020203,2]
[398950009,1766014244490,-500.0,0.00020203,2]
[398950010,1766014244501,-500.0,0.00020203,2]
[398950011,1766014244511,-250.0,0.00020203,2]
[398950012,1766014244520,-500.0,0.00020203,2]
[398950013,1766014244529,-500.0,0.00020203,2]
[398950014,1766014244540,-10000.0,0.0002024,2]
[398950015,1766014244551,-500.0,0.0002034,2]
[398950016,1766014244560,-660.0,0.0002034,2]
[398950017,1766014244569,-500.0,0.0002034,2]
[398950018,1766014244578,-500.0,0.0002034,2]
[398950019,1766014244587,-500.0,0.0002034,2]
[398950020,1766014244596,-500.0,0.0002034,2]
[398950021,1766014244605,-500.0,0.00020477,2]
[398950022,1766014244614,-660.0,0.00020477,2]
[398950023,1766014244623,-362.67396395,0.00020477,2]
[398950024,1766014244632,-500.0,0.00020477,2]
[398950025,1766014244642,-500.0,0.00020477,2]
[398950026,1766014244652,-500.0,0.00020477,2]
[398950027,1766014244661,-300.84,0.00020532,2]
[398950028,1766014244670,-500.0,0.00020614,2]
[398950029,1766014244679,-660.0,0.00020614,2]
[398950031,1766014244688,-500.0,0.00020614,2]
[398950032,1766014244697,-500.0,0.00020614,2]
[398950033,1766014244705,-500.0,0.00020614,2]
[398950034,1766014244714,-166.66,0.0002072,2]
[398950035,1766014244725,-383.49615881,0.00020751,2]
[398950036,1766014244734,-500.0,0.00020751,2]
[398950037,1766014244743,-660.0,0.00020751,2]
[398950038,1766014244752,-213.63401332,0.00020751,2]
[398950039,1766014244760,-500.0,0.00020751,2]
[398950040,1766014244770,-500.0,0.00020751,2]
[398950041,1766014244779,-1000.0,0.00020795,2]
[398950042,1766014244787,-500.0,0.00020888,2]
[398950043,1766014244796,-660.0,0.00020888,2]
[398950044,1766014244806,-500.0,0.00020888,2]
[398950045,1766014244815,-500.0,0.00020888,2]
[398950046,1766014244824,-350.0,0.00021,2]
[398950047,1766014244834,-500.0,0.00021025,2]
[398950048,1766014245167,-660.0,0.00021025,2]
[398950049,1766014245200,-500.0,0.00021025,2]
[398950050,1766014245209,-500.0,0.00021025,2]
[398950051,1766014245219,-2116.5466935,0.00021059,2]
[398950052,1766014245227,-184.13,0.00021089,2]
[398950053,1766014245237,-500.0,0.00021123,2]
[398950054,1766014245247,-500.0,0.00021162,2]
[398950055,1766014245256,-660.0,0.00021162,2]
[398950056,1766014245265,-500.0,0.00021162,2]
[398950057,1766014245274,-500.0,0.00021162,2]
[398950058,1766014245283,-500.0,0.00021299,2]
[398950059,1766014245293,-660.0,0.00021299,2]
[398950060,1766014245302,-500.0,0.00021299,2]
[398950061,1766014245311,-600.0,0.00021299,2]
[398950062,1766014245320,-300.84,0.00021424,2]
[398950063,1766014245329,-3117.547888,0.00021427,2]
[398950064,1766014245340,-660.0,0.00021436,2]
[398950065,1766014245350,-389.10428919,0.00021436,2]
[398950066,1766014245359,-13473.3396304,0.00021556,2]
[398950067,1766014245368,-400.2007067,0.00021568,2]
[398950068,1766014245378,-660.0,0.00021573,2]
[398950069,1766014245388,-465.52748528,0.00021622,2]
[398950070,1766014245397,-660.0,0.0002171,2]
[398950071,1766014245406,-6658.24100725,0.00021724,2]
[398950072,1766014245420,-179689.25175015,0.00021724,2]
[398950073,1766014245429,-660.0,0.00021847,2]
[398950074,1766014245438,-1744.904,0.0002187,2]
[398950075,1766014245448,-1607.0,0.0002187,2]
[398950076,1766014245457,-1324.0,0.0002187,2]
[398950077,1766014245466,-563.0,0.0002187,2]
[398950078,1766014245474,-6522.0,0.0002187,2]
[398950079,1766014245483,-4798.0,0.0002187,2]
[398950080,1766014245492,-2427.0,0.0002187,2]
[398950081,1766014245501,-612.0,0.0002187,2]
[398950082,1766014245510,-660.0,0.00021984,2]
[398950083,1766014245519,-152.0,0.00022,2]
[398950084,1766014245528,-153.0,0.00022,2]
[398950085,1766014245537,-153.0,0.00022,2]
[398950086,1766014245546,-153.0,0.00022,2]
[398950087,1766014245555,-153.0,0.00022,2]
[398950088,1766014245564,-153.0,0.00022,2]
[398950089,1766014245573,-153.0,0.00022,2]